bitfinex-derivatives/quotes_SOLF0:USTF0_20241120
["timestamp","ask_amount","ask_price","bid_price","bid_amount"]
[1732065610384,175.0264148,236.42,236.31,2.24]
[1732065610585,175.0264148,236.43,236.31,2.24]
[1732065610880,8.43939858,236.42,236.3,10.29463099]
[1732065611082,9.67299858,236.42,236.3,10.29463099]
[1732065611284,175.0264148,236.4,236.3,10.29463099]
[1732065611485,2.1123,236.38,236.31,2.1129]
[1732065611678,175.0264148,236.4,236.3,10.29463099]
[1732065611885,1.2755,236.41,236.3,10.29463099]
[1732065612078,9.7212036,236.41,236.3,10.29463099]
[1732065614285,2.1123,236.38,236.31,2.113]
[1732065615485,10.5579036,236.4,236.32,2.1129]
[1732065615688,8.4457036,236.4,236.32,2.1129]
[1732065615887,1.2755,236.41,236.32,2.1129]
[1732065616289,9.72539322,236.41,236.32,2.1129]
[1732065616494,2.1123,236.38,236.32,2.1129]
[1732065616789,31.73404716,236.44,236.33,10.29463099]
[1732065616790,29.49404716,236.44,236.33,10.29463099]
[1732065616984,8.44923134,236.43,236.36,10.29463099]
[1732065617181,1.2241,236.45,236.36,10.29463099]
[1732065617379,8.44874141,236.46,236.37,2.1123]
[1732065618490,8.44874141,236.46,236.36,12.40713099]
[1732065619284,2.1119,236.43,236.36,12.40713099]
[1732065619489,175.0264148,236.48,236.39,12.40683099]
[1732065619686,2.5785,236.5,236.39,10.29463099]
[1732065619986,2.1117,236.45,236.39,10.29463099]
[1732065620186,8.44738575,236.49,236.36,12.53463099]
[1732065620486,10.02035856,236.48,236.36,12.53463099]
[1732065620687,8.44738575,236.47,236.36,12.53463099]
[1732065620884,2.1123,236.39,236.36,2.24]
[1732065621190,12.53463099,236.46,236.33,10.29463099]
[1732065621381,2.1122,236.39,236.33,10.29463099]
[1732065621586,18.46984895,236.45,236.33,10.29463099]
[1732065621783,18.46984895,236.44,236.31,2.24]
[1732065621989,2.1124,236.38,236.31,4.3529]
[1732065622788,2.1122,236.4,236.32,2.1129]
[1732065623093,18.46853915,236.43,236.32,2.1129]
[1732065623285,8.44784711,236.42,236.32,2.1129]
[1732065623488,8.44784711,236.41,236.32,2.1129]
[1732065623691,1.1801,236.44,236.32,2.1129]
[1732065623888,19.64944889,236.44,236.32,2.1129]
[1732065624092,18.46934889,236.43,236.32,2.1129]
[1732065624388,8.44821548,236.42,236.36,10.29463099]
[1732065624589,175.0264148,236.45,236.36,10.29463099]
[1732065624893,2.24,236.46,236.36,10.29463099]
[1732065625090,8.44687032,236.45,236.36,10.29463099]
[1732065625387,2.1118,236.44,236.37,2.1124]
[1732065626081,2.24,236.46,236.37,2.1124]
[1732065626284,8.44670678,236.45,236.36,12.40713099]
[1732065627284,8.44670678,236.45,236.36,10.29463099]
[1732065627596,181.1044148,236.5,236.39,10.29463099]
[1732065627791,18.46588902,236.49,236.39,10.29463099]
[1732065627990,18.46588902,236.48,236.39,10.29463099]
[1732065628293,8.44671856,236.47,236.42,10.29463099]
[1732065628595,175.0264148,236.53,236.45,10.29463099]
[1732065628795,8.4449539,236.52,236.45,10.29463099]
[1732065628992,10.5561539,236.52,236.45,12.40633099]
[1732065629189,8.4449539,236.51,236.45,12.40633099]
[1732065629996,2.1114,236.49,236.43,2.24]
[1732065630600,8.44230487,236.53,236.39,10.29463099]
[1732065630803,193.48268469,236.54,236.39,12.53463099]
[1732065630999,2.1116,236.47,236.39,14.64683099]
[1732065631507,8.44230487,236.5,236.39,12.53463099]
[1732065631707,2.1116,236.47,236.39,14.64683099]
[1732065635106,2.1114,236.49,236.42,10.29463099]
[1732065635412,2.1113,236.51,236.44,2.1118]
[1732065635805,8.4411707,236.51,236.42,10.29463099]
[1732065636612,8.4411707,236.51,236.42,12.53463099]
[1732065636809,2.24,236.52,236.42,12.53463099]
[1732065637313,2.1113,236.5,236.42,12.53463099]
[1732065638204,2.1113,236.5,236.42,14.64663099]
[1732065638410,8.43852918,236.51,236.42,12.53463099]
[1732065638911,8.43852918,236.5,236.42,12.53463099]
[1732065639112,2.1111,236.52,236.42,12.53463099]
[1732065639609,2.1111,236.52,236.44,2.1118]
[1732065639813,10.54675828,236.52,236.44,2.1118]
[1732065640009,8.43565828,236.51,236.44,2.1118]
[1732065640808,8.43565828,236.51,236.45,10.29463099]
[1732065641013,30.67433198,236.57,236.48,10.29463099]
[1732065641212,18.44025377,236.56,236.48,12.53463099]
[1732065641414,8.43513357,236.55,236.48,12.53463099]
[1732065641611,8.43513357,236.54,236.48,12.53463099]
[1732065641916,1.1948,236.57,236.48,12.53463099]
[1732065642315,2.1108,236.55,236.48,14.64603099]
[1732065642616,29.47953198,236.6,236.51,10.29463099]
[1732065642820,18.42997311,236.59,236.51,10.29463099]
[1732065643034,10.54095753,236.58,236.51,10.29463099]
[1732065643217,8.43045753,236.57,236.51,10.29463099]
[1732065643419,8.43045753,236.57,236.52,2.1111]
[1732065643720,2.1105,236.59,236.52,2.1111]
[1732065643917,10.53763867,236.59,236.52,2.1111]
[1732065644322,8.42713867,236.58,236.52,2.1111]
[1732065644718,8.42713867,236.58,236.51,10.29463099]
[1732065644921,9.59723867,236.62,236.51,10.29463099]
[1732065645220,184.62365347,236.62,236.51,10.29463099]
[1732065645522,8.42713867,236.61,236.51,10.29463099]
[1732065645719,2.1104,236.6,236.51,12.40583099]
[1732065645919,8.42713867,236.6,236.51,12.40583099]
[1732065646120,176.1965148,236.62,236.51,12.40583099]
[1732065646425,8.42163382,236.61,236.51,10.29463099]
[1732065647524,2.1106,236.58,236.51,10.29463099]
[1732065648525,8.42163382,236.61,236.48,12.53463099]
[1732065648827,10.29463099,236.59,236.47,2.1115]
[1732065649120,2.1107,236.57,236.5,2.1113]
[1732065650822,8.41318692,236.61,236.52,10.29463099]
[1732065651017,30.64963198,236.62,236.52,10.29463099]
[1732065652022,30.64963198,236.62,236.51,2.24]
[1732065652226,11.46473099,236.62,236.51,2.24]
[1732065652420,8.40726784,236.61,236.51,2.24]
[1732065652926,2.1107,236.56,236.51,2.24]
[1732065653120,2.1107,236.56,236.5,2.1112]
[1732065656224,2.1106,236.58,236.5,2.1112]
[1732065656726,2.1106,236.58,236.51,2.1112]
[1732065656923,2.1106,236.57,236.51,2.1112]
[1732065657926,2.1105,236.59,236.53,2.111]
[1732065658121,1.1701,236.62,236.49,10.29463099]
[1732065658518,2.1106,236.57,236.51,2.1111]
[1732065660621,2.1106,236.57,236.53,6.58281414]
[1732065661226,2.1106,236.58,236.53,6.58281414]
[1732065661527,8.40880468,236.59,236.53,6.58281414]
[1732065662323,8.40880468,236.59,236.51,2.1112]
[1732065662523,8.40880468,236.59,236.48,6.58281414]
[1732065662524,6.58281414,236.55,236.48,6.58281414]
[1732065662720,2.111,236.53,236.48,6.58281414]
[1732065662924,2.24,236.57,236.52,6.58281414]
[1732065663126,175.0264148,236.58,236.52,6.58281414]
[1732065663531,177.1370148,236.58,236.52,6.58281414]
[1732065663734,175.0264148,236.6,236.52,6.58281414]
[1732065663932,8.41216586,236.59,236.52,6.58281414]
[1732065664526,2.1107,236.57,236.54,6.58281414]
[1732065664729,8.41216586,236.59,236.52,6.58281414]
[1732065665030,2.1106,236.57,236.52,6.58281414]
[1732065665230,2.1106,236.57,236.51,2.1112]
[1732065665431,8.41216586,236.59,236.52,6.58281414]
[1732065666028,8.41216586,236.59,236.54,6.58281414]
[1732065666533,183.43858066,236.59,236.54,6.58281414]
[1732065666736,8.41216586,236.58,236.54,6.58281414]
[1732065667035,2.1106,236.57,236.54,6.58281414]
[1732065667529,2.1106,236.57,236.52,2.1111]
[1732065667724,2.1106,236.57,236.54,6.58281414]
[1732065668535,2.1109,236.54,236.49,4.3513]
[1732065668833,6.58281414,236.59,236.52,6.58281414]
[1732065669234,2.1109,236.55,236.52,6.58281414]
[1732065674333,2.1109,236.55,236.49,4.3513]
[1732065674334,177.1369148,236.59,236.54,6.58281414]
[1732065674539,8.42919441,236.58,236.56,6.58281414]
[1732065674937,175.0264148,236.59,236.56,6.58281414]
[1732065675237,8.42912515,236.58,236.56,6.58281414]
[1732065675438,8.42912515,236.57,236.56,6.58281414]
[1732065675639,8.42912515,236.59,236.56,6.58281414]
[1732065677235,10.53962515,236.59,236.56,6.58281414]
[1732065677433,8.42912515,236.58,236.56,6.58281414]
[1732065678340,2.1108,236.56,236.5,2.1112]
[1732065678639,2.1108,236.56,236.53,6.58281414]
[1732065678841,2.1106,236.58,236.53,6.58281414]
[1732065679046,10.53931388,236.58,236.53,6.58281414]
[1732065679240,8.42871388,236.57,236.53,6.58281414]
[1732065679638,8.42871388,236.57,236.55,6.58281414]
[1732065680142,8.42871388,236.56,236.55,6.58281414]
[1732065680439,8.42871388,236.59,236.55,6.58281414]
[1732065680938,8.42871388,236.59,236.57,6.58281414]
[1732065681244,175.0264148,236.62,236.57,6.58281414]
[1732065681438,2.1101,236.63,236.61,6.58281414]
[1732065681840,18.44778814,236.63,236.59,6.58281414]
[1732065682040,8.43871737,236.62,236.57,6.58281414]
[1732065682336,175.0264148,236.62,236.57,6.58281414]
[1732065682646,6.58281414,236.64,236.57,6.58281414]
[1732065682647,177.1367148,236.61,236.57,6.58281414]
[1732065682844,8.43770968,236.6,236.57,6.58281414]
[1732065683046,8.43770968,236.6,236.55,8.80281414]
[1732065683245,175.0264148,236.59,236.55,6.58281414]
[1732065683845,177.1369148,236.59,236.55,6.58281414]
[1732065684546,2.1105,236.59,236.55,6.58281414]
[1732065684745,10.55037979,236.59,236.55,6.58281414]
[1732065685139,177.1368148,236.6,236.55,6.58281414]
[1732065685343,8.44372976,236.59,236.57,6.58281414]
[1732065685543,175.0264148,236.61,236.57,6.58281414]
[1732065685747,175.0264148,236.61,236.59,6.58281414]
[1732065686238,175.0264148,236.62,236.59,6.58281414]
[1732065686439,175.0264148,236.62,236.51,2.22]
[1732065686644,175.0264148,236.62,236.56,2.1107]
[1732065686940,175.0264148,236.62,236.57,6.58281414]
[1732065686941,2.1102,236.62,236.57,6.58281414]
[1732065687141,8.44254245,236.63,236.57,6.58281414]
[1732065687548,8.44254245,236.63,236.51,2.22]
[1732065687740,8.44254245,236.63,236.56,6.58281414]
[1732065687945,183.46895725,236.63,236.56,6.58281414]
[1732065688145,8.44254245,236.62,236.56,6.58281414]
[1732065689345,2.1103,236.61,236.56,6.58281414]
[1732065690450,8.4349989,236.6,236.56,6.58281414]
[1732065690845,2.1106,236.58,236.53,6.58281414]
[1732065691049,8.4349989,236.57,236.53,6.58281414]
[1732065692947,8.4349989,236.57,236.56,6.58281414]
[1732065693151,8.4349989,236.62,236.56,6.58281414]
[1732065693351,10.00419352,236.61,236.56,6.58281414]
[1732065693552,2.1105,236.59,236.56,6.58281414]
[1732065693751,8.4349989,236.58,236.56,6.58281414]
[1732065694056,8.4349989,236.58,236.54,6.58281414]
[1732065695846,8.4349989,236.58,236.52,6.58281414]
[1732065695847,10.5455989,236.58,236.52,6.58281414]
[1732065696357,8.4349989,236.57,236.52,6.58281414]
[1732065697457,2.1106,236.58,236.52,6.58281414]
[1732065703466,2.1106,236.58,236.52,8.69391414]
[1732065704960,175.0264148,236.61,236.33,5.04595678]
[1732065704961,6.58281414,236.6,236.33,5.04595678]
[1732065705165,6.58281414,236.58,236.5,6.58281414]
[1732065705366,6.58281414,236.58,236.37,3.76]
[1732065705367,6.58281414,236.56,236.37,3.76]
[1732065705566,2.111,236.53,236.47,6.58281414]
[1732065706163,6.58281414,236.56,236.47,6.58281414]
[1732065706364,2.1111,236.52,236.47,6.58281414]
[1732065706667,2.1111,236.52,236.46,2.1115]
[1732065706968,2.1111,236.52,236.47,6.58281414]
[1732065709071,6.58281414,236.56,236.47,6.58281414]
[1732065709368,2.1111,236.52,236.47,6.58281414]
[1732065710068,2.1111,236.52,236.46,2.1116]
[1732065710366,6.58281414,236.51,236.43,6.58281414]
[1732065710563,6.58281414,236.51,236.25,5.04595678]
[1732065710564,6.58281414,236.49,236.25,5.04595678]
[1732065710871,2.22,236.51,236.4,6.58281414]
[1732065710872,2.1117,236.45,236.4,6.58281414]
[1732065711068,173.0812148,236.54,236.41,2.22]
[1732065711269,173.0812148,236.54,236.26,1.1786]
[1732065711270,29.46386648,236.66,236.53,6.58281414]
[1732065711469,29.46386648,236.66,236.48,2.22]
[1732065711470,6.58281414,236.63,236.48,2.22]
[1732065711765,2.1104,236.6,236.54,6.58281414]
[1732065712870,6.58281414,236.61,236.49,2.1113]
[1732065713071,8.4255149,236.6,236.52,6.58281414]
[1732065713275,2.22,236.59,236.52,6.58281414]
[1732065713970,6.58281414,236.57,236.49,6.58281414]
[1732065714275,8.80281414,236.59,236.49,6.58281414]
[1732065714476,8.44803907,236.58,236.53,6.58281414]
[1732065714674,2.22,236.63,236.57,6.58281414]
[1732065714874,2.22,236.63,236.42,1.2281]
[1732065714875,8.4474727,236.62,236.59,6.58281414]
[1732065715069,2.22,236.64,236.59,6.58281414]
[1732065715375,2.22,236.64,236.52,2.22]
[1732065715376,8.44710799,236.63,236.52,2.22]
[1732065715676,8.44710799,236.63,236.55,6.58281414]
[1732065716270,2.1103,236.61,236.55,6.58281414]
[1732065718173,2.1103,236.61,236.53,2.111]
[1732065718174,2.1103,236.61,236.57,6.58281414]
[1732065718772,2.1105,236.59,236.55,6.58281414]
[1732065719071,2.1105,236.59,236.29,5.04595678]
[1732065719072,6.58281414,236.6,236.48,2.22]
[1732065719279,6.58281414,236.6,236.3,17.72595678]
[1732065719280,2.1107,236.57,236.51,6.58281414]
[1732065719573,8.80281414,236.58,236.51,6.58281414]
[1732065720276,2.1109,236.55,236.49,6.58281414]
[1732065720772,6.58281414,236.54,236.42,2.22]
[1732065721077,6.58281414,236.54,236.46,6.58281414]
[1732065721273,2.1112,236.51,236.46,6.58281414]
[1732065721474,2.22,236.52,236.46,6.58281414]
[1732065721982,2.1112,236.51,236.46,6.58281414]
[1732065722573,2.22,236.52,236.42,2.1119]
[1732065722574,2.1114,236.49,236.42,2.1119]
[1732065722777,2.1114,236.49,236.41,2.4542]
[1732065723080,2.1114,236.49,236.41,4.5662]
[1732065723273,2.1114,236.49,236.41,3.3318]
[1732065723578,2.22,236.52,236.4,10.29418962]
[1732065723772,2.22,236.52,236.37,12.51418962]
[1732065724079,2.1113,236.5,236.4,10.29418962]
[1732065724278,2.1113,236.5,236.43,10.29418962]
[1732065724477,2.22,236.52,236.43,12.40608962]
[1732065724478,4.3312,236.52,236.43,12.40608962]
[1732065724684,2.22,236.52,236.43,12.40608962]
[1732065724877,29.47446191,236.56,236.46,10.29418962]
[1732065724878,2.22,236.53,236.46,10.29418962]
[1732065725076,2.1111,236.52,236.46,10.29418962]
[1732065725378,2.1111,236.52,236.45,2.1116]
[1732065726279,2.22,236.53,236.41,1.2824]
[1732065726476,2.22,236.52,236.42,10.29418962]
[1732065726877,2.1112,236.51,236.44,2.1118]
[1732065727072,2.22,236.52,236.45,10.29418962]
[1732065728382,2.22,236.52,236.42,10.29418962]
[1732065728873,176.19774623,236.59,236.48,10.29418962]
[1732065729074,8.43872283,236.58,236.48,10.29418962]
[1732065729377,2.22,236.6,236.51,12.40538962]
[1732065729576,8.43864416,236.59,236.51,10.29418962]
[1732065730180,10.65864416,236.59,236.51,10.29418962]
[1732065730380,2.22,236.59,236.51,10.29418962]
[1732065731180,2.22,236.59,236.49,2.1113]
[1732065731181,2.1107,236.57,236.49,2.1113]
[1732065731475,2.22,236.59,236.48,10.29418962]
[1732065731674,2.22,236.59,236.48,12.40558962]
[1732065731675,2.1108,236.55,236.48,12.40558962]
[1732065731873,2.22,236.59,236.48,10.29418962]
[1732065732074,8.43917272,236.58,236.45,10.29418962]
[1732065732474,2.1109,236.54,236.45,10.29418962]
[1732065733071,2.1109,236.54,236.47,2.1115]
[1732065734083,2.1112,236.51,236.44,2.1118]
[1732065734677,2.22,236.53,236.42,10.29418962]
[1732065734877,2.1114,236.49,236.42,12.40608962]
[1732065735384,2.1113,236.5,236.43,2.1118]
[1732065738885,12.51418962,236.53,236.41,1.2824]
[1732065739093,8.43916894,236.52,236.41,1.2824]
[1732065739495,2.1115,236.48,236.41,1.2824]
[1732065739790,2.22,236.53,236.41,1.2824]
[1732065739791,12.51418962,236.53,236.41,1.2824]
[1732065740093,2.1116,236.46,236.41,1.2824]
[1732065740695,2.1118,236.44,236.37,34.78492746]
[1732065740891,2.1118,236.44,236.37,24.49073784]
[1732065741088,2.22,236.47,236.37,22.37843784]
[1732065741288,2.1119,236.43,236.37,22.37843784]
[1732065741587,12.51418962,236.47,236.37,22.37843784]
[1732065741793,2.1121,236.41,236.37,22.37843784]
[1732065742194,12.51418962,236.47,236.37,22.37843784]
[1732065742391,8.4382661,236.46,236.37,22.37843784]
[1732065742594,2.1121,236.41,236.37,22.37843784]
[1732065742996,2.1123,236.39,236.37,22.37843784]
[1732065744089,2.1123,236.38,236.37,22.37843784]
[1732065744799,4.3323,236.38,236.37,22.37843784]
[1732065747293,4.3323,236.38,236.37,16.80243784]
[1732065748695,12.51418962,236.38,236.25,10.29418962]
[1732065748900,12.51418962,236.38,236.27,2.1133]
[1732065749306,12.51418962,236.38,236.25,10.29418962]
[1732065749598,2.113,236.31,236.25,12.40758962]
[1732065749901,2.113,236.31,236.25,10.29418962]
[1732065751100,12.51418962,236.38,236.25,10.29418962]
[1732065751295,2.22,236.38,236.25,10.29418962]
[1732065751691,2.22,236.38,236.26,2.1134]
[1732065752103,2.1128,236.33,236.27,2.1133]
[1732065753498,2.22,236.38,236.27,2.1133]
[1732065753693,2.4941,236.43,236.31,10.29418962]
[1732065753895,2.22,236.42,236.31,10.29418962]
[1732065754614,2.22,236.42,236.3,2.113]
[1732065754902,2.22,236.42,236.28,10.29418962]
[1732065755303,10.29418962,236.41,236.28,10.29418962]
[1732065755807,2.1127,236.35,236.28,12.40738962]
[1732065756102,10.29418962,236.41,236.28,10.29418962]
[1732065756304,2.1125,236.36,236.31,2.1129]
[1732065756504,2.1125,236.36,236.28,10.29418962]
[1732065757104,10.29418962,236.41,236.28,10.29418962]
[1732065757805,10.29418962,236.41,236.28,12.40738962]
[1732065758403,2.1127,236.35,236.28,12.40738962]
[1732065760104,2.1127,236.34,236.28,12.40738962]
[1732065760298,2.22,236.36,236.25,10.29418962]
[1732065760701,6.59743653,236.34,236.27,6.59743653]
[1732065761106,2.113,236.31,236.27,6.59743653]
[1732065761309,2.113,236.31,236.29,6.59743653]
[1732065762504,2.113,236.31,236.27,6.59743653]
[1732065762705,8.71033653,236.32,236.25,6.59743653]
[1732065763009,6.59743653,236.32,236.25,6.59743653]
[1732065763712,6.59743653,236.26,236.19,6.59743653]
[1732065764107,2.1136,236.25,236.21,6.59743653]
[1732065764409,8.81743653,236.28,236.21,6.59743653]
[1732065764613,2.1137,236.24,236.16,12.42832583]
[1732065764909,2.1137,236.24,236.16,10.31412583]
[1732065765906,2.1137,236.23,236.17,2.1142]
[1732065766303,12.53412583,236.28,236.13,10.31412583]
[1732065767304,2.1139,236.21,236.14,2.1145]
[1732065767709,2.1139,236.21,236.13,10.31412583]
[1732065768013,2.1138,236.22,236.15,2.1144]
[1732065768609,2.22,236.25,236.19,10.31412583]
[1732065770012,2.22,236.25,236.16,10.31412583]
[1732065770507,2.1139,236.22,236.16,10.31412583]
[1732065770711,2.22,236.25,236.16,10.31412583]
[1732065771310,2.1138,236.23,236.16,10.31412583]
[1732065771905,2.1139,236.21,236.14,2.1145]
[1732065772711,2.1139,236.2,236.14,2.1145]
[1732065772913,2.22,236.25,236.14,12.42862583]
[1732065773313,2.1139,236.21,236.14,12.42862583]
[1732065773614,2.1139,236.21,236.11,3.787]
[1732065773815,2.1139,236.21,236.15,10.31412583]
[1732065779512,2.1139,236.21,236.14,2.1144]
[1732065779717,2.114,236.2,236.14,10.31412583]
[1732065782012,2.22,236.23,236.11,14.10112583]
[1732065782913,2.22,236.23,236.12,2.1147]
[1732065783812,2.22,236.23,236.11,14.10112583]
[1732065784013,2.22,236.23,236.13,2.1146]
[1732065784623,2.1141,236.19,236.13,2.1146]
[1732065785620,2.1142,236.18,236.12,2.1146]
[1732065786623,2.1142,236.18,236.16,6.60312564]
[1732065787022,2.1139,236.21,236.16,6.60312564]
[1732065787325,8.82312564,236.23,236.16,6.60312564]
[1732065787520,2.1141,236.18,236.16,6.60312564]
[1732065788617,8.82312564,236.23,236.16,6.60312564]
[1732065788818,2.114,236.19,236.16,6.60312564]
[1732065789019,8.82312564,236.23,236.16,6.60312564]
[1732065789326,2.1141,236.19,236.16,6.60312564]
[1732065789521,8.82312564,236.23,236.16,6.60312564]
[1732065790523,2.1142,236.17,236.16,6.60312564]
[1732065791619,2.1142,236.17,236.13,2.1146]
[1732065791823,2.1142,236.17,236.14,6.60312564]
[1732065792520,2.1143,236.16,236.14,6.60312564]
[1732065792728,6.60312564,236.21,236.14,6.60312564]
[1732065793524,2.22,236.23,236.06,2.498]
[1732065793728,6.60312564,236.19,236.12,6.60312564]
[1732065794429,6.60312564,236.19,236.1,2.1148]
[1732065794430,2.1144,236.15,236.1,2.1148]
[1732065794727,6.60312564,236.14,236.08,6.60312564]
[1732065795130,6.60312564,236.12,235.98,2.22]
[1732065795327,6.60312564,236.12,236.05,6.60312564]
[1732065796231,2.1149,236.09,236.05,6.60312564]
[1732065797434,6.60312564,236.08,236.0,1.2409]
[1732065797644,6.60312564,236.08,236.01,6.60312564]
[1732065798933,6.60312564,236.06,236.0,1.2409]
[1732065799139,6.60312564,236.06,235.95,1.1674]
[1732065799434,2.1156,236.02,235.98,6.60312564]
[1732065799637,2.1156,236.02,235.97,6.60312564]
[1732065800537,19.27312564,235.98,235.71,5.04595678]
[1732065800841,12.67,235.96,235.77,6.60312564]
[1732065801042,6.60312564,235.85,235.73,2.5801]
[1732065801243,8.72042564,235.83,235.73,2.5801]
[1732065801441,6.60312564,235.79,235.7,2.1183]
[1732065801736,6.60312564,235.79,235.73,6.60312564]
[1732065801937,2.22,235.84,235.73,6.60312564]
[1732065801938,6.60312564,235.81,235.73,6.60312564]
[1732065802154,6.60312564,235.79,235.66,2.22]
[1732065802737,10.35576795,235.82,235.67,10.35576795]
[1732065802936,2.1173,235.83,235.7,10.35576795]
[1732065803140,2.22,235.84,235.7,10.35576795]
[1732065803540,2.1175,235.81,235.7,10.35576795]
[1732065803743,2.22,235.84,235.7,10.35576795]
[1732065804153,2.1173,235.83,235.7,12.47416795]
[1732065804444,12.67,235.99,235.76,10.35576795]
[1732065804743,11.58536795,235.91,235.76,10.35576795]
[1732065805143,2.22,235.9,235.76,10.35576795]
[1732065805341,2.22,235.9,235.77,1.2237]
[1732065805741,2.1168,235.89,235.77,3.3415]
[1732065805942,2.22,235.9,235.77,3.3415]
[1732065807240,2.22,235.9,235.77,1.2237]
[1732065807443,10.35576795,235.88,235.77,1.2237]
[1732065808344,2.1172,235.84,235.77,1.2237]
[1732065808541,4.3372,235.84,235.77,1.2237]
[1732065809244,2.22,235.84,235.77,1.2237]
[1732065810348,4.3372,235.84,235.77,1.2237]
[1732065810543,11.58536795,235.91,235.77,1.2237]
[1732065810744,2.22,235.9,235.78,10.35576795]
[1732065810943,2.1168,235.88,235.79,2.1176]
[1732065811550,2.1171,235.85,235.77,1.2237]
[1732065812242,10.35576795,235.88,235.77,1.2237]
[1732065813045,10.35576795,235.85,235.77,1.2237]
[1732065813252,10.35576795,235.82,235.71,2.22]
[1732065813450,2.22,235.81,235.71,2.22]
[1732065814247,4.3375,235.81,235.73,2.1181]
[1732065815048,4.3375,235.81,235.71,4.3383]
[1732065815049,2.1176,235.79,235.71,4.3383]
[1732065815852,2.1176,235.79,235.71,2.1183]
[1732065816355,2.1178,235.77,235.69,2.1185]
[1732065817647,14.89,235.81,235.67,2.22]
[1732065817858,10.35576795,235.79,235.67,2.22]
[1732065818647,10.35576795,235.79,235.71,2.1183]
[1732065819149,10.35576795,235.79,235.67,2.22]
[1732065819451,2.1177,235.78,235.7,2.1184]
[1732065820350,10.35576795,235.79,235.63,3.7474]
[1732065820544,10.35576795,235.79,235.66,10.35576795]
[1732065822252,2.1178,235.78,235.7,2.1184]
[1732065822447,2.22,235.8,235.69,10.35576795]
[1732065822749,1.2105,235.9,235.72,10.35576795]
[1732065822750,2.22,235.83,235.72,10.35576795]
[1732065822958,12.57576795,235.85,235.72,12.57576795]
[1732065823349,25.24576795,235.85,235.72,2.22]
[1732065823547,10.35576795,235.82,235.72,2.22]
[1732065823849,10.35576795,235.82,235.67,12.57576795]
[1732065824347,10.35576795,235.79,235.67,2.22]
[1732065824652,12.57576795,235.79,235.67,2.22]
[1732065825351,12.57576795,235.79,235.68,2.1185]
[1732065825560,12.57576795,235.79,235.63,3.7474]
[1732065825561,10.35576795,235.76,235.63,3.7474]
[1732065826253,2.1182,235.73,235.65,2.1189]
[1732065826454,2.1182,235.73,235.63,3.7474]
[1732065827252,2.1183,235.72,235.65,2.1189]
[1732065827847,2.1183,235.71,235.63,2.119]
[1732065828348,2.22,235.73,235.62,2.1191]
[1732065829453,2.1185,235.7,235.62,2.1191]
[1732065829660,2.22,235.73,235.6,10.35576795]
[1732065829959,4.3382,235.73,235.63,10.35576795]
[1732065830551,2.1182,235.73,235.63,10.35576795]
[1732065830858,4.3377,235.78,235.66,10.35576795]
[1732065831050,10.35576795,235.83,235.69,10.35576795]
[1732065831250,2.22,235.82,235.69,10.35576795]
[1732065831649,10.35576795,235.8,235.67,2.22]
[1732065831853,2.22,235.82,235.65,1.1919]
[1732065831854,10.35576795,235.77,235.65,1.1919]
[1732065832059,2.22,235.76,235.65,1.1919]
[1732065832359,10.35576795,235.74,235.59,1.2568]
[1732065832557,10.35576795,235.74,235.59,3.4768]
[1732065832956,11.62976795,235.74,235.59,3.4768]
[1732065833558,2.1186,235.68,235.61,2.1192]
[1732065834653,10.35576795,235.71,235.59,1.2568]
[1732065834853,10.35576795,235.71,235.57,1.2088]
[1732065834854,2.1188,235.66,235.57,1.2088]
[1732065835454,2.1188,235.66,235.58,2.1195]
[1732065835661,2.1188,235.66,235.57,1.2088]
[1732065837262,2.1188,235.66,235.59,2.1194]
[1732065838160,2.22,235.7,235.49,3.4142]
[1732065838161,10.35576795,235.65,235.49,3.4142]
[1732065838360,2.22,235.64,235.5,10.35576795]
[1732065838661,4.7471,235.64,235.51,1.55828367]
[1732065838868,4.7471,235.64,235.51,0.77912061]
[1732065839064,4.7471,235.64,235.53,2.1199]
[1732065839761,4.7471,235.64,235.51,11.13488856]
[1732065839762,4.7471,235.64,235.51,10.35576795]
[1732065840160,185.3276292,235.69,235.49,4.6507]
[1732065840161,10.35576795,235.68,235.54,10.35576795]
[1732065840358,10.35576795,235.68,235.55,2.22]
[1732065840561,2.22,235.69,235.53,2.1199]
[1732065840562,2.1192,235.62,235.53,2.1199]
[1732065840762,2.1192,235.62,235.49,15.00646795]